Cogmind - Beta 13 @@@ ROGUE MODE // 2024.04.02 @ 23:32:40 Player: Olafz Result: Destroyed by as-93104 with Assembled Blade Performance ------------- Evolutions (0) 0 Regions Visited (2) 400 Robots Destroyed (18) 90 Value Destroyed (318) 318 Prototype IDs (1) 20 Alien Tech Used (0) 0 Bonus (0) 0 TOTAL SCORE: 828 Bonus ------- None Cogmind --------- Core Integrity 0/250 Matter 300/300 Energy 90/100 System Corruption 9% Temperature Cool (0) Movement Flying (40) Location -10/Mines Parts ------- > --- POWER (1) -------- (None) > --- PROPULSION (2) --- Flight Unit > --- UTILITY (2) ------ Signal Interpreter > --- WEAPON (2) ------- Flail Flail > --- INVENTORY (5) ---- Light Ion Engine Light Ion Engine Improved Medium Laser Improved Medium Laser Peak State ------------ > --- POWER ------------ Light Ion Engine > --- PROPULSION ------- Compact Wheel Compact Wheel > --- UTILITY ---------- Small Storage Unit Hardened Light Armor Plating > --- WEAPON ----------- Improved Medium Laser Improved Medium Laser > --- INVENTORY -------- Light Ion Engine Small Laser Improved Medium Laser [Rating: 12] Favorites ----------- Power Light Ion Engine Engine Light Ion Engine Propulsion Compact Wheel Leg Aluminum Leg Wheel Compact Wheel Hover Unit Hover Unit Flight Unit Flight Unit Utility Signal Interpreter Device Sensor Array Storage Small Storage Unit Processor Signal Interpreter Protection Hardened Light Armor Plating Weapon Improved Medium Laser Energy Gun Improved Medium Laser Impact Weapon Flail Build | -11 -10 -10 ------- Run | Yrd Mat Min Slots Evolved . | . . . Power . | . . . Propulsion . | . . . Utility . | . . . Weapon . | . . . Parts Attached 21 | 5 15 1 Power 2 | 1 1 . Engine 2 | 1 1 . Core . | . . . Reactor . | . . . Propulsion 9 | 2 6 1 Treads . | . . . Leg 1 | . 1 . Wheel 2 | 2 . . Hover 3 | . 3 . Flight 3 | . 2 1 Utility 4 | 1 3 . Device 1 | . 1 . Storage 1 | 1 . . Processor 1 | . 1 . Hackware . | . . . Protection 1 | . 1 . Artifact . | . . . Weapon 6 | 1 5 . Energy Gun 4 | 1 3 . Energy Cannon . | . . . Ballistic Gun . | . . . Ballistic Cannon . | . . . Launcher . | . . . Special Weapon . | . . . Impact Weapon 2 | . 2 . Slashing Weapon . | . . . Piercing Weapon . | . . . Special Melee Weapon . | . . . Unidentified Prototypes 1 | . 1 . Parts Lost 7 | . 4 3 Power 1 | . 1 . Propulsion 5 | . 3 2 Utility 1 | . . 1 Weapon . | . . . Highest Loss Streak 3 | . 2 3 To Critical Strikes . | . . . Average Slot Usage (%) 81 | . 81 81 Engine 8 | . 11 . Leg 2 | . 3 . Wheel 8 | . 10 . Hover 4 | . 6 . Flight 7 | . 3 26 Device 8 | . 7 12 Storage 5 | . 6 . Processor 8 | . 7 14 Protection 2 | . 3 . Energy Gun 18 | . 22 . Impact Weapon 6 | . 1 28 Naked Turns . | . . . Heaviest Build 19 | 9 19 5 Greatest Support 32 | 32 32 8 Greatest Overweight (x) 6 | . 6 . Average Overweight (x) . | . . . Largest Inventory Capacity 8 | 8 8 5 Average Capacity 6 | 7 6 5 Most Carried 5 | 1 5 5 Average Carried 3 | . 3 4 Final Capacity 8 | 8 5 5 Final Carried 5 | 1 5 4 Class Distribution -------------------- 55% | Mutant 44% | Scavenger-Mutant Dominant Class ---------------- Mutant | -10/Materials Scavenger-Mutant | -10/Mines Resources | -11 -10 -10 ----------- Run | Yrd Mat Min Matter Collected 401 | 192 209 . Remotely . | . . . Salvage Created 511 | . 500 11 Parts 43 | . 43 . Haulers Intercepted . | . . . Recyclers Shooed . | . . . Parts Field Recycled . | . . . Retrieved Matter . | . . . Parts Self-Destructed . | . . . Prevented . | . . . Kills | -11 -10 -10 ------- Run | Yrd Mat Min Combat Hostiles Destroyed 10 | . 9 1 Melee 1 | . . 1 Guns 9 | . 9 . Classes Destroyed 8 | . 7 1 Worker 2 | . 2 . Builder 3 | . 3 . Recycler 1 | . 1 . Operator 2 | . 2 . Watcher 1 | . 1 . Swarmer 3 | . 3 . Grunt 6 | . 6 . Assembled 1 | . . 1 Best Kill Streak 9 | . 9 1 Combat Bots Only 4 | . 4 1 Max Kills in Single Turn 2 | . 2 1 Gunslinging 1 | . 1 . Exploded . | . . . Melee 1 | . . 1 Uniques/NPCs Destroyed . | . . . Combat | -11 -10 -10 -------- Run | Yrd Mat Min Hostile Shots Fired 74 | . 43 31 Missed 25 | . 12 13 Damage Taken 687 | . 341 346 Core 275 | . 104 171 Absorbed by Shields . | . . . Core Remaining (%) 100 | 100 . . Volleys Fired 31 | . 31 . Largest 2 | . 2 . Hottest 112 | . 112 . Shots Fired 50 | . 50 . Gun 50 | . 50 . Cannon . | . . . Launcher . | . . . Special . | . . . Kinetic . | . . . Thermal 50 | . 50 . Explosive . | . . . Electromagnetic . | . . . Robot Hit Streak 11 | . 11 . Robot Miss Streak 3 | . 3 . Penetration Max . | . . . Secondary Targets 2 | . 2 . Max Gunslinging Chain 1 | . 1 . Shots Hit Robots 32 | . 30 2 Core Hits 20 | . 19 1 Critical Kills . | . . . Critical Parts Destroyed . | . . . Critical Strikes 3 | . 3 . Burn 3 | . 3 . Melee Attacks 8 | . . 8 Impact 8 | . . 8 Slashing . | . . . Piercing . | . . . Sneak Attacks . | . . . Combat Hostiles . | . . . Follow-up Attacks 2 | . . 2 Damage Inflicted 660 | . 544 116 Guns 544 | . 544 . Cannons . | . . . Explosions . | . . . Melee 116 | . . 116 Ramming . | . . . Kinetic . | . . . Thermal 544 | . 544 . Explosive . | . . . Electromagnetic . | . . . Impact 116 | . . 116 Slashing . | . . . Piercing . | . . . Highest Corruption 9 | . . 9 Average Corruption 9 | . . 9 Corruption Purged . | . . . Corruption Blocked . | . . . Effects 1 | . . 1 Message Errors 1 | . . 1 Overload Shots . | . . . Overflow Damage 57 | . . 57 Projectiles . | . . . Explosions . | . . . Melee 57 | . . 57 Knockbacks . | . . . Impact . | . . . Kinetic . | . . . Secondary . | . . . Self-Inflicted Damage . | . . . Shots . | . . . Rammed . | . . . Targets Rammed . | . . . Kicked . | . . . Crushed . | . . . Highest Temperature 570 | . 570 2 Average Temperature 225 | . 228 1 Received Heat Transfer 191 | . 111 80 Effects 12 | . 12 . Shutdowns 4 | . 4 . Energy Bleed 2 | . 2 . Interference 3 | . 3 . Matter Decay 1 | . 1 . Short Circuit 1 | . 1 . Damage (core) 1 | . 1 . Siege Activations . | . . . Robots Corrupted . | . . . Combat Hostiles . | . . . Parts Fried . | . . . Impact Corruptions 1 | . . 1 Robots Melted . | . . . Combat Hostiles . | . . . Parts Melted 2 | . 2 . Heat Transferred 1406 | . 1406 . Parts Sabotaged . | . . . Parts Stolen . | . . . Parts Stripped . | . . . Power Chain Reactions . | . . . Alert | -11 -10 -10 ------- Run | Yrd Mat Min Peak Influence 245 | . 245 100 Initial 95 | . . 95 Average 90 | . 106 91 Maximum Alert Level 1 | . 1 . Low Security (%) 81 | 100 73 100 Level 1 18 | . 26 . Level 2 . | . . . Level 3 . | . . . Level 4 . | . . . Level 5 . | . . . High Security . | . . . Max Security . | . . . Squads Dispatched 2 | . 2 . Investigation . | . . . Extermination . | . . . Reinforcement 2 | . 2 . Assault . | . . . Garrison . | . . . Intercept . | . . . Searches Triggered . | . . . Construction Impeded . | . . . Haulers Reinforced . | . . . Active Scanning Responses . | . . . Cargo Convoy Interrupts . | . . . Stealth | -11 -10 -10 --------- Run | Yrd Mat Min Distress Signals . | . . . Communications Jammed . | . . . Distress Signals . | . . . Times Spotted 26 | . 13 13 Peak Tracking Total 19 | . 3 19 Tactical Retreats 3 | . . 3 Traps | -11 -10 -10 ------- Run | Yrd Mat Min Traps Triggered . | . . . Indirectly . | . . . Trap Hack Attempts . | . . . Triggered . | . . . Disarmed . | . . . Reprogrammed . | . . . Reused . | . . . Traps Extracted . | . . . Installed . | . . . Triggered . | . . . Machines | -11 -10 -10 ---------- Run | Yrd Mat Min Machines Disabled . | . . . Max in Single Turn . | . . . Machines Repaired . | . . . Machines Dismantled . | . . . Machines Sabotaged . | . . . Overloaded Fab Kills . | . . . Hacking | -11 -10 -10 --------- Run | Yrd Mat Min Machines Accessed 1 | . 1 . Terminals . | . . . Fabricators . | . . . Repair Stations . | . . . Recycling Units 1 | . 1 . Scanalyzers . | . . . Garrison Access . | . . . Total Hacks 3 | . 3 . Successful 2 | . 2 . Failed 1 | . 1 . Catastrophic 1 | . 1 . Database Lockouts . | . . . Manual . | . . . Terminals . | . . . Fabricators . | . . . Repair Stations . | . . . Recycling Units 3 | . 3 . Scanalyzers . | . . . Garrison Access . | . . . Terminal Hacks . | . . . Fabricator Hacks . | . . . Repair Station Hacks . | . . . Recycling Unit Hacks 2 | . 2 . Report Inventory 1 | . 1 . Retrieve Components 1 | . 1 . Scanalyzer . | . . . Garrison Access Hacks . | . . . Unauthorized Hacks . | . . . Terminals . | . . . Fabricators . | . . . Repair Stations . | . . . Recycling Units . | . . . Scanalyzers . | . . . Garrison Access . | . . . Data Cores Recovered . | . . . Used . | . . . Hacking Detections 1 | . 1 . Full Trace Events . | . . . Feedback Events . | . . . Feedback Blocked . | . . . Robot Schematics Acquired . | . . . Robots Built . | . . . Authchips . | . . . Time . | . . . Total Robot Build Rating . | . . . Part Schematics Acquired . | . . . Parts Built . | . . . Authchips . | . . . Time . | . . . Total Part Build Rating . | . . . Parts Repaired . | . . . Time . | . . . Parts Recycled . | . . . Recycled Matter . | . . . Retrieved Matter . | . . . Retrieved Components 2 | . 2 . Parts Scanalyzed . | . . . Part Schematics Acquired . | . . . Parts Damaged . | . . . Bothacking | -11 -10 -10 ------------ Run | Yrd Mat Min Used RIF Installer . | . . . Robots Hacked . | . . . Non-combat . | . . . Combat . | . . . Robot Hacks Applied . | . . . Relay Couplers Released . | . . . Fabnet Peak Effective % . | . . . Robots Rewired . | . . . Allies Hacked . | . . . Hacks Repelled . | . . . Allies | -11 -10 -10 -------- Run | Yrd Mat Min Total Allies . | . . . Largest Group . | . . . Highest-Rated Group . | . . . Highest-Rated Ally . | . . . Total Orders . | . . . Ally Attacks . | . . . Total Damage . | . . . Kills . | . . . Allies Corrupted . | . . . Allies Melted . | . . . Intel | -11 -10 -10 ------- Run | Yrd Mat Min Robot Analysis Total . | . . . Derelict Logs Recovered 1 | . . 1 Drone Launches . | . . . Drone Recoveries . | . . . Exploration | -11 -10 -10 ------------- Run | Yrd Mat Min Turns Passed 404 | 52 284 68 Spaces Moved 370 | 45 182 143 Core 15 | 1 14 . Treads . | . . . Legs 25 | . 25 . Wheels 127 | 44 83 . Hover 10 | . 10 . Flight 193 | . 50 143 Fastest Speed 37 | 50 37 37 Average Speed 72 | 98 94 37 Slowest Speed 350 | 100 350 40 Overloaded Moves . | . . . Propulsion Burnouts . | . . . Robots Hopped . | . . . Cave-ins Triggered . | . . . Exploration Rate (%) 21 | 3 21 40 Regions Visited 2 Branch Regions 1 Pre-discovered Areas . | . . . Known Exits Taken 1 | . 1 . Unknown Exits Taken 1 | 1 . . Scrap Searched 1 | . . 1 Spaces Dug . | . . . Terrain Destroyed . | . . . Melee . | . . . Projectile . | . . . AOE . | . . . Terrain Rammed . | . . . Walls Destroyed . | . . . Machines Disabled . | . . . Actions | -11 -10 -10 --------- Run | Yrd Mat Min Total 443 | 50 243 150 Wait . | . . . Move 368 | 44 181 143 Hop . | . . . Pick Up 3 | 1 2 . Fast Attach 19 | 5 14 . Attach 1 | . . 1 Detach 6 | . 6 . Swap 1 | . 1 . Drop 8 | . 8 . Fire 31 | . 31 . Melee 6 | . . 6 Ram . | . . . Kick . | . . . Crush . | . . . Escape Stasis . | . . . Rewire . | . . . Trap . | . . . Miscellaneous . | . . . Route ------- -11/Scrapyard -10/Materials -10/Mines History --------- Turn | Location | Event 28 | -11/Scrapyard | Discovered new exit (range 15) 53 | -11/Scrapyard | Entered Materials 140 | -10/Materials | Discovered new exit (range 14) 337 | -10/Materials | Identified exit to Mines 337 | -10/Materials | Entered Mines 340 | -10/Mines | Learned location of 1 exit from Materials 352 | -10/Mines | Assembled infested the area 357 | -10/Mines | Assisted by a Guerilla fighting off Assembled 397 | -10/Mines | Core integrity fell below 50% 399 | -10/Mines | Core integrity fell below 20% 405 | -10/Mines | Destroyed by as-93104 with Assembled Blade Last Messages --------------- 00355_ Found Structural Scanner. 00355_ Found Hcp. Battery. 00355_ Found 30 Matter. 00356_ BC-IYC(h): "I'll hold them off! Go on ahead or try to find another way!" 00356_ as-29858 suffers critical hit (Destroy). 00356_ as-29858 knocked back. 00364_ T-07 Excavator is excavating. 00373_ Flight Unit destroyed. 00391_ Flail follow-up attack on as-98138. 00391_ as-98138 destroyed. 00394_ Sensor Array destroyed. 00394_ Flight Unit destroyed. 00394_ System corrupted by crushing effect (+4). 00394_ System corrupted by crushing effect (+5). 00394_ Knocked back. 00397_ Destroyed Asb. Hover Unit. 00397_ as-59573 system corrupted by crushing effect. 00398_ XJ5NP YQ8FV6XIEZYW#B7:#GWTUJ>VIIWBQ%IMXG 00405_ Flail follow-up attack on as-93104. Map ----- +----------------------------------------------------+ | ???????????????????????#### ####??????????????? | | ?????????????????????????# #####???####?????? | | ?????????????????????????# ##?## #####?? | | ?????????????????????????# ### ### | | ?????????????????????????## ## # | | ??????????????????????????## #### | | ???????????????????????????# #??## | | ???????????????????????????# #??## | | ???????????????????????????# #??# | | ???????????????????????????# ##??# | | ???????????????????????????# ##???# ## | | ???????????????????????????# #????# #### | | ???????????????????????????# #????## ##??# | | ?????????????????# ##### #?????# ##???# | | ????????????????# #?????# #????## # | | ???????????? #### ###?????# #?????## ### | | ??????????????????????????# ##??????# #??????# ### | | ?????????????????????????## ##?????# ######## ## | | ?????????????????????????# ####??# ##!## | | ?????????????????????????# ##?# ##### ##!## | | ?????????????????????????## #?# #???# ## ## | | ??????????????????????###### #?# #???# ## | | ?????????????????????## #### ### ##### ## ### | | ????????????????????## ### a ## ## #]## ## | | ???????????????????## aaa % %! # | | ???????????????????# @a %=! | | ???????????????????# ] #### | | ???????????????????## ## #??# | | ????????????????????###### ####### % #??? | | ?????????????????????????#####?????# ? | | ???????????????????????????????????# ## ? | | ???????????????????????????????????# #####"### | | ??????????????????????????????????# #????????? | | ????????????????????????????????? #????????? | | ????????????????????????????????? #????????? | | ???????????????????????????????? ##????????? | | ???????????????????????????????? ## ##?????????? | | ??????????????????????????????????####???????????? | | ?????????????????????????????????????????????????? | | ?????????????????????????????????????????????????? | | ?????????????????????????????????????????????????? | | ?????????????????????????????????????????????????? | | ?????????????????????????????????????????????????? | | ?????????????????????????????????????????????????? | | ?????????????????????????????????????????????????? | | ?????????????????????????????????????????????????? | | ?????????????????????????????????????????????????? | | ?????????????????????????????????????????????????? | | ?????????????????????????????????????????????????? | | ?????????????????????????????????????????????????? | +----------------------------------------------------+ Best States ------------- Heat Dissipation 25 Energy Generation 10 Energy Capacity 125 Matter Stores 300 Matter Capacity 300 Sight Range 16 Robot Scan Range 14 Terrain Scan Density 10 Armor Coverage 150 Evasion (%) 62 Item Schematics ----------------- None Robot Schematics ------------------ None Fabricated ------------ Nothing Alien Tech Used ----------------- None Achievements -------------- None Challenges ------------ None Game ------ Seed DispersionReflectiveMembrane Manual? 0 Play Time 00:12:09 Cumulative 14.6 hours Start 2024.04.02 @ 12:37:50 End 2024.04.02 @ 23:32:40 Sessions 1 Manual Loads 0 Difficulty Rogue Special Mode None Game No. 42 Rogue 40 Adventurer 2 Explorer 0 Win Type - Total 0 Types 0/0/0/0/0/0/0/0/0 Lore% 16 Gallery% 19 Achievement% 18 Wizard Run 0 Options --------- Layout 0 ASCII 0 Keyboard 1 Movement Arrows Keybinds 0 Fullscreen 2 Font 18/SmallcapsGlow Map View 76x50 Zoom Use 0% Tactical HUD 1 Map Filters NONE Filters NONE Steam 1 RUN: 2f123133-2d84-4115-80f5-7df44e4b9bae